[Event "British Championship 2024"]
[Site "Hull"]
[Date "2024.07.31"]
[Round "2.1"]
[White "Howell, David W L"]
[Black "Kanyamarala, Tarun"]
[Result "1-0"]
[Annotator "TA"]
[ECO "B43"]
[WhiteElo "2675"]
[BlackElo "2333"]
[PlyCount "115"]
[EventDate "2024.07.31"]
[EventCountry "GBR"]
[SourceTitle "playchess.com"]
[Source "ChessBase"]
[SourceQuality "1"]
[TimeControl "40/5400+30:1800+30"]

{[%evp 22,115,44,42,14,6,20,7,18,25,9,13,31,19,31,25,8,24,22,13,102,98,95,93,108,102,102,103,111,101,82,95,128,117,98,108,104,103,142,131,150,115,148,130,126,131,131,133,137,133,128,128,129,129,152,152,143,140,152,0,158,134,158,146,177,179,217,238,267,266,276,247,472,456,559,624,942,795,916,865,872,854,811,794,1054,1112,1112,1112,1106,1089,1089,1086,1295,1441,1364,1252]} 1. e4 {[%emt 0:05:24]} c5 {[%emt 0:00:11]} 2. Nf3 {[%emt 0:00:11]} e6 {[%emt 0:00:14]} 3. Nc3 {[%emt 0:02:16]} a6 {[%emt 0:00:27]} 4. d4 {[%emt 0:01:42]} cxd4 {[%emt 0:00:12]} 5. Nxd4 {[%emt 0:00:06]} b5 {[%emt 0:00:14]} 6. Bd3 {[%emt 0:01:24]} Bb7 {[%emt 0:00:18]} 7. O-O {[%emt 0:00:28]} Nc6 {[%emt 0:00:21]} 8. Nxc6 {[%emt 0:02:47]} Bxc6 {[%emt 0:00:10]} 9. Re1 {[%emt 0:00:12] B43: Sicilian: Kan Variation: 5 Nc3.} Qb8 {[%emt 0:00:27] 9...Ne7 is the modern continuation.} 10. a4 {[%emt 0:01:53]} bxa4 {[%emt 0:00:21]} 11. Nxa4 {[%emt 0:00:10]} Bd6 {[%emt 0:00:16]} 12. h3 {[%emt 0:03:04]} Ne7 {[%emt 0:00:24]} 13. Be3 {[%emt 0:00:41]} Bh2+ {[%emt 0:00:27]} 14. Kh1 {[%emt 0:00:06]} Bf4 {[%emt 0:00:17]} 15. Bxf4 {[%emt 0:13:53]} Qxf4 {[%emt 0:00:13]} 16. Kg1 $146 {[%emt 0:00:06]} ({Predecessor:} 16. Qe2 O-O 17. Qe3 Qxe3 18. Rxe3 a5 19. Ree1 Rfb8 20. b3 f6 21. Nc3 Ng6 22. Ra2 {½-½ Jiang,T (1917)-Shukhman,A (2263) Wch U14 Girls 2023 (11)}) 16... O-O {[%emt 0:05:31]} 17. Nb6 {[%emt 0:16:58]} Rab8 {[%emt 0:00:46]} 18. Nc4 {[%emt 0:00:18]} (18. Rxa6 Qc7 19. Na4 Bxa4 20. Rxa4 Rxb2 $16) 18... Bb5 {[%emt 0:15:31]} 19. b3 {[%emt 0:06:28]} Nc6 {[%emt 0:05:06]} 20. Bf1 {[%emt 0:09:16]} d5 {[%emt 0:11:20]} (20... Rfd8 $11) 21. exd5 $16 {[%emt 0:01:28]} exd5 {[%emt 0:00:16]} 22. Qxd5 {[%emt 0:02:37]} Nb4 {[%emt 0:01:32]} 23. Qd1 {[%emt 0:00:58]} Rfd8 {[%emt 0:06:17]} 24. Qc1 {[%emt 0:05:42]} Qf6 {[%emt 0:01:21]} 25. Ne5 {[%emt 0:05:36]} Bxf1 {[%emt 0:11:07]} 26. Kxf1 {[%emt 0:00:05]} Rd5 {[%emt 0:01:40]} 27. Nc4 {[%emt 0:04:31]} h6 {[%emt 0:07:28]} 28. Re2 {[%emt 0:04:02]} Rbd8 {[%emt 0:02:11]} 29. Ne3 {[%emt 0:08:00]} Rc5 {[%emt 0:06:09] [#]} 30. Qe1 $1 {[%emt 0:00:25]} Rc3 {[%emt 0:03:33]} 31. Ra4 {[%emt 0:01:39]} Nd5 {[%emt 0:07:37]} 32. Nxd5 {[%emt 0:02:05]} Rxd5 {[%emt 0:00:06]} 33. Re8+ {[%emt 0:00:20]} Kh7 {[%emt 0:00:02]} 34. Qe4+ {[%emt 0:00:08]} Qf5 {[%emt 0:00:06]} 35. Qxf5+ {[%emt 0:00:22]} (35. Rxa6 $6 Rxc2 36. Qxf5+ Rxf5 $11) 35... Rxf5 {[%emt 0:00:02]} 36. Ra2 {[%emt 0:01:36]} (36. Rxa6 $6 Rxc2 37. Re2 Rc1+ 38. Re1 Rc2 $11) 36... Rfc5 {[%emt 0:00:40]} 37. Re2 {[%emt 0:00:05]} (37. Rxa6 $6 Rxc2 38. Re2 Rc1+ 39. Re1 R1c3 $14) 37... Rc6 {[%emt 0:11:22]} 38. Ke1 {[%emt 0:00:08]} Rd6 {[%emt 0:00:14]} 39. Rd2 {[%emt 0:01:36]} Re6+ {[%emt 0:00:53]} 40. Re2 {[%emt 0:00:12]} Rd6 {[%emt 0:00:46]} 41. Re7 {[%emt 0:06:35]} Rc5 {[%emt 0:04:35]} 42. Ke2 {[%emt 0:07:17]} (42. Rxf7 $2 Re5+ 43. Kf1 Rd1#) 42... f5 {[%emt 0:06:22]} 43. c4 {[%emt 0:05:12]} f4 {[%emt 0:02:04]} 44. Rd2 {[%emt 0:05:00]} Rg6 {[%emt 0:01:49]} 45. Kf3 {[%emt 0:00:24]} Rcg5 {[%emt 0:01:39]} 46. Ra7 {[%emt 0:01:01]} ({Don't play} 46. Kxf4 Rxg2 47. Re3 Rf6+ 48. Ke4 Rg1 $18) 46... Rxg2 $2 {[%emt 0:04:13]} (46... a5 47. Rd8 (47. Kxf4 Rxg2 48. Rxa5 Rh2 $18) 47... Rf6) 47. Rxa6 $1 $18 {[%emt 0:00:32]} ({Not} 47. Kxf4 Rh2 $16) 47... R6g5 {[%emt 0:06:31]} 48. h4 {[%emt 0:02:59]} R5g4 {[%emt 0:00:09]} 49. c5 {[%emt 0:00:26]} Rg1 {[%emt 0:00:37]} 50. Rc2 {[%emt 0:02:17]} Rxh4 {[%emt 0:00:22]} 51. c6 {[%emt 0:00:40]} Rh3+ {[%emt 0:00:44]} 52. Kxf4 {[%emt 0:03:45]} g5+ {[%emt 0:07:02]} 53. Kf5 {[%emt 0:00:10]} Rf3+ {[%emt 0:00:35]} 54. Ke4 {[%emt 0:00:05]} Rf4+ {[%emt 0:00:31]} 55. Kd5 {[%emt 0:00:36]} Rd1+ {[%emt 0:00:22]} 56. Kc5 {[%emt 0:00:05]} Rf5+ {[%emt 0:00:16]} 57. Kb6 {[%emt 0:00:58]} Rdd5 {[%emt 0:00:10]} 58. c7 {[%emt 0:00:44]} 1-0

[Event "British Championship 2024"]
[Site "Hull"]
[Date "2024.07.31"]
[Round "2.2"]
[White "Jones, Gawain C B"]
[Black "Ledger, Andrew J"]
[Result "1-0"]
[Annotator "RC"]
[ECO "A07"]
[WhiteElo "2633"]
[BlackElo "2334"]
[PlyCount "148"]
[EventDate "2024.07.31"]
[EventCountry "GBR"]
[SourceTitle "playchess.com"]
[Source "ChessBase"]
[SourceQuality "1"]
[TimeControl "40/5400+30:1800+30"]

1. Nf3 {[%emt 0:00:13]} d5 {[%emt 0:00:14]} 2. c4 {[%emt 0:00:12]} c6 {[%emt 0:00:22]} 3. g3 {[%emt 0:00:06]} g6 {[%emt 0:00:40]} 4. Bg2 {[%emt 0:00:18]} Bg7 {[%emt 0:00:28]} 5. O-O {[%emt 0:05:00]} e5 {[%emt 0:00:55]} 6. d3 {[%emt 0:00:08]} Ne7 {[%emt 0:01:21]} 7. e4 {[%emt 0:00:08]} O-O {[%emt 0:03:43]} 8. b4 {[%emt 0:01:06]} h6 {[%emt 0:06:18]} 9. Nbd2 {[%emt 0:05:55]} Be6 {[%emt 0:05:58]} 10. a4 {[%emt 0:03:49]} Nd7 {[%emt 0:07:59]} 11. Ba3 {[%emt 0:03:45]} dxe4 {[%emt 0:11:32]} 12. dxe4 {[%emt 0:01:36]} Re8 {[%emt 0:04:40]} 13. c5 {[%emt 0:05:47]} a5 {[%emt 0:08:16]} 14. Qc2 {[%emt 0:02:48]} axb4 {[%emt 0:06:20]} 15. Bxb4 {[%emt 0:01:50]} b6 {[%emt 0:01:42]} 16. cxb6 {[%emt 0:11:45]} Qxb6 {[%emt 0:00:12]} 17. Bxe7 {[%emt 0:00:20]} Rxe7 {[%emt 0:00:04]} 18. Rfc1 {[%emt 0:00:12]} Ra5 {[%emt 0:09:30]} 19. Bf1 {[%emt 0:14:53]} Nc5 {[%emt 0:02:24]} 20. Bc4 {[%emt 0:03:09]} Qa7 {[%emt 0:01:46]} 21. Bxe6 {[%emt 0:06:38]} Rxe6 {[%emt 0:01:09]} 22. Ra2 {[%emt 0:00:50]} Re8 {[%emt 0:06:15]} 23. Rca1 {[%emt 0:01:42]} Ra6 {[%emt 0:02:27]} 24. Nc4 {[%emt 0:11:59]} Ne6 {[%emt 0:00:44]} 25. a5 {[%emt 0:01:16]} Nd4 {[%emt 0:03:33]} 26. Qd3 {[%emt 0:01:13]} c5 {[%emt 0:03:40]} 27. Nb6 {[%emt 0:02:13]} h5 {[%emt 0:01:38]} 28. Kg2 {[%emt 0:01:11]} Qb7 {[%emt 0:01:33]} 29. Kg1 {[%emt 0:03:17]} Ra7 {[%emt 0:02:44]} 30. Rb2 {[%emt 0:05:02]} Qc6 {[%emt 0:00:49]} 31. Nc4 {[%emt 0:00:42]} Qe6 {[%emt 0:00:48]} 32. Nxd4 {[%emt 0:02:30]} exd4 {[%emt 0:00:30]} 33. Re1 {[%emt 0:00:57]} h4 {[%emt 0:01:34]} 34. Rb6 {[%emt 0:00:17]} Qd7 {[%emt 0:01:05]} 35. e5 {[%emt 0:00:52]} Re6 {[%emt 0:02:29]} 36. Qe4 {[%emt 0:01:07]} h3 {[%emt 0:00:56]} 37. Reb1 {[%emt 0:00:58]} Re8 {[%emt 0:01:23]} 38. Qc6 {[%emt 0:03:11]} Qxc6 {[%emt 0:00:56]} 39. Rxc6 {[%emt 0:00:02]} Bxe5 {[%emt 0:00:15]} 40. Kf1 {[%emt 0:00:53]} Bc7 {[%emt 0:00:48]} 41. a6 {[%emt 0:06:36]} d3 {[%emt 0:08:42]} 42. Rd1 {[%emt 0:10:45]} Re6 {[%emt 0:09:45]} 43. Rxe6 {[%emt 0:00:27]} fxe6 {[%emt 0:00:04]} 44. Ra1 {[%emt 0:00:14]} Kf7 {[%emt 0:03:24]} 45. Ke1 {[%emt 0:00:42]} Ke7 {[%emt 0:00:57]} 46. Kd2 {[%emt 0:00:17]} Kd7 {[%emt 0:00:10]} 47. Kxd3 {[%emt 0:02:13]} Kc6 {[%emt 0:00:05]} 48. f4 {[%emt 0:05:43]} Kb5 {[%emt 0:02:55]} 49. Na3+ {[%emt 0:00:24]} Kc6 {[%emt 0:01:49]} 50. Nc4 {[%emt 0:00:05]} Kb5 {[%emt 0:00:04]} 51. Rb1+ {[%emt 0:00:36]} Kc6 {[%emt 0:00:35]} 52. Re1 {[%emt 0:00:05]} Kd5 {[%emt 0:03:14]} 53. Ne3+ {[%emt 0:00:15]} Kd6 {[%emt 0:01:07]} 54. Ra1 {[%emt 0:00:15]} Bd8 {[%emt 0:00:46]} 55. Ng4 {[%emt 0:03:15]} Kd5 {[%emt 0:00:52]} 56. Ra4 {[%emt 0:04:20]} g5 {[%emt 0:00:49]} 57. fxg5 {[%emt 0:00:30]} Bxg5 {[%emt 0:00:04]} 58. Nf2 {[%emt 0:00:03]} c4+ {[%emt 0:03:33]} 59. Rxc4 {[%emt 0:00:05]} Rxa6 {[%emt 0:00:03]} 60. Nxh3 {[%emt 0:00:11]} Ra3+ {[%emt 0:00:54]} 61. Rc3 {[%emt 0:00:02]} Rxc3+ {[%emt 0:00:25]} 62. Kxc3 {[%emt 0:00:03]} Bf6+ {[%emt 0:00:28]} 63. Kd3 {[%emt 0:00:05]} Ke5 {[%emt 0:00:03]} 64. Nf2 {[%emt 0:00:44]} Kf5 {[%emt 0:00:15]} 65. Ke3 {[%emt 0:00:08]} Bd8 {[%emt 0:00:21]} 66. Kf3 {[%emt 0:00:17]} Bc7 {[%emt 0:00:37]} 67. h4 {[%emt 0:00:57]} Kg6 {[%emt 0:01:01]} 68. g4 {[%emt 0:02:35]} Bd8 {[%emt 0:00:18]} 69. h5+ {[%emt 0:00:31]} Kg5 {[%emt 0:00:37]} 70. Ne4+ {[%emt 0:00:40]} Kh6 {[%emt 0:00:55]} 71. Nc5 {[%emt 0:00:10]} e5 {[%emt 0:00:16]} 72. Ne6 {[%emt 0:00:06]} Ba5 {[%emt 0:00:34]} 73. Ke4 {[%emt 0:00:12]} Bc3 {[%emt 0:00:06]} 74. Kf5 {[%emt 0:00:23]} Bb2 {[%emt 0:00:12]} 1-0

[Event "British Championship 2024"]
[Site "Hull"]
[Date "2024.07.31"]
[Round "2.3"]
[White "Wu, Li"]
[Black "McShane, Luke J"]
[Result "0-1"]
[Annotator "TA"]
[ECO "A30"]
[WhiteElo "2328"]
[BlackElo "2617"]
[PlyCount "118"]
[EventDate "2024.07.31"]
[EventCountry "GBR"]
[SourceTitle "playchess.com"]
[Source "ChessBase"]
[SourceQuality "1"]
[TimeControl "40/5400+30:1800+30"]

{[%evp 29,118,24,14,11,17,-13,-9,-18,-11,-20,-13,-11,-8,-11,6,5,20,6,40,-12,0,-6,-9,-5,-6,-54,5,-54,-54,-53,-46,-46,-45,-66,-31,-25,0,-9,-13,-6,0,0,7,0,21,22,21,20,20,1,1,1,14,0,0,0,0,0,0,0,0,0,0,0,0,0,0,0,0,0,0,0,0,-18,-12,-46,-46,-95,-95,-173,-128,-135,-118,-139,-130,-150,-146,-263,-261,-572,-526]} 1. Nf3 {[%emt 0:00:05]} Nf6 {[%emt 0:02:20]} 2. c4 {[%emt 0:00:15]} b6 {[%emt 0:06:17]} 3. g3 {[%emt 0:02:11]} Bb7 {[%emt 0:00:07]} 4. Bg2 {[%emt 0:00:04]} e6 {[%emt 0:01:07]} 5. O-O {[%emt 0:02:00]} Be7 {[%emt 0:02:02]} 6. b3 {[%emt 0:02:19]} O-O {[%emt 0:00:28]} 7. Bb2 {[%emt 0:00:02]} c5 {[%emt 0:02:54]} 8. d4 {[%emt 0:05:15]} cxd4 {[%emt 0:00:07]} 9. Qxd4 {[%emt 0:00:09]} d6 {[%emt 0:07:13]} 10. Nc3 {[%emt 0:01:29]} a6 {[%emt 0:00:30]} 11. Rfd1 {[%emt 0:08:00]} Qc7 {[%emt 0:01:35]} 12. Ng5 {[%emt 0:06:19]} Bxg2 {[%emt 0:24:15]} 13. Kxg2 {[%emt 0:00:21]} Nbd7 {[%emt 0:00:53]} 14. Nge4 {[%emt 0:05:26]} Rfd8 {[%emt 0:02:03]} 15. Nxf6+ {[%emt 0:03:47] A30: Symmetrical English: Double Fianchetto and Hedgehog.} Nxf6 {[%emt 0:00:37]} 16. e4 {[%emt 0:02:26]} Qb7 {[%emt 0:04:46]} 17. f3 {[%emt 0:07:32]} b5 {[%emt 0:00:37]} 18. cxb5 $146 {[%emt 0:01:57]} ({Predecessor:} 18. Rd2 Rac8 19. cxb5 axb5 20. a3 Rc5 21. Nd1 Rdc8 22. Ne3 Bf8 23. Rad1 h6 24. h4 {1-0 Meijers,V (2475)-Sarrau,J (2325) Ghent Taminco op 37th 2014 (4)}) 18... axb5 {[%emt 0:00:06]} 19. a3 {[%emt 0:00:31]} Bf8 {[%emt 0:02:12]} 20. b4 {[%emt 0:16:50]} Rac8 {[%emt 0:23:01]} 21. Qd3 {[%emt 0:09:00]} d5 {[%emt 0:01:58]} 22. e5 {[%emt 0:03:56]} Nd7 {[%emt 0:00:26]} 23. Nxb5 {[%emt 0:05:06]} (23. Qxb5 $2 {is the wrong capture.} Qxb5 24. Nxb5 Rc2+ 25. Kg1 Rxb2 $19) 23... Nb6 {[%emt 0:02:44]} 24. Bd4 {[%emt 0:00:53]} (24. Nd4 $14) 24... Nc4 $11 {[%emt 0:01:12]} 25. a4 {[%emt 0:01:28]} Bxb4 {[%emt 0:00:38]} 26. Rdb1 {[%emt 0:01:23]} Qe7 $1 {[%emt 0:00:51]} 27. Ra2 {[%emt 0:03:39]} (27. a5 $1 $11 {feels stronger.}) 27... Ra8 {[%emt 0:01:41]} ({Black should try} 27... Rc6 $15) 28. f4 {[%emt 0:02:43]} (28. Na7 $1 $11 Nxe5 (28... Rxa7 29. Bxa7 Nxe5 30. Qb5 $18) 29. Qe2) 28... Rdb8 $15 {[%emt 0:01:21]} 29. Nc3 {[%emt 0:02:58]} Qe8 {[%emt 0:04:13]} 30. Rba1 {[%emt 0:01:35]} Qc6 {[%emt 0:00:55]} 31. Nd1 {[%emt 0:01:02]} Bf8 {[%emt 0:05:16]} 32. a5 {[%emt 0:01:14]} Ra6 {[%emt 0:00:33]} 33. Ne3 {[%emt 0:00:49]} Nxe3+ {[%emt 0:00:57]} 34. Qxe3 {[%emt 0:00:04]} Rc8 {[%emt 0:00:27]} 35. Qd3 {[%emt 0:01:33]} g6 {[%emt 0:00:21]} 36. Bb6 {[%emt 0:00:40]} Qc4 {[%emt 0:00:21]} 37. Qxc4 {[%emt 0:00:13]} Rxc4 {[%emt 0:00:03]} 38. Rb1 {[%emt 0:00:55]} Be7 {[%emt 0:01:03]} 39. Kf3 {[%emt 0:01:24]} Kf8 {[%emt 0:00:46]} 40. Be3 {[%emt 0:01:39]} Rc8 {[%emt 0:00:48]} 41. Rb7 {[%emt 0:04:37]} Bd8 {[%emt 0:09:04]} 42. Bd2 {[%emt 0:02:42]} Ke8 {[%emt 0:03:17]} 43. Ke3 {[%emt 0:02:46]} Rca8 {[%emt 0:07:14]} 44. Rb5 {[%emt 0:01:19]} Kd7 {[%emt 0:00:05]} 45. Kd4 {[%emt 0:02:06]} Rc6 {[%emt 0:01:19]} 46. Ra4 {[%emt 0:05:48]} Bc7 {[%emt 0:00:24]} 47. Kd3 {[%emt 0:07:35]} Kc8 {[%emt 0:00:06]} 48. Ra2 {[%emt 0:04:02]} Raa6 {[%emt 0:00:37]} 49. Rab2 {[%emt 0:00:26]} Rc4 {[%emt 0:01:36]} 50. Ra2 {[%emt 0:01:19]} Kd7 {[%emt 0:00:36]} 51. Rab2 {[%emt 0:01:16]} Ra4 {[%emt 0:08:34]} 52. Bb4 {[%emt 0:00:32]} Ra7 {[%emt 0:00:43]} 53. Bc3 {[%emt 0:01:27]} (53. Rc2 $15) 53... Bxa5 $17 {[%emt 0:00:49]} (53... Kc6 {keeps more tension.} 54. R5b3 Bxa5 55. Bd4 Rc7) 54. Rb7+ {[%emt 0:00:12]} (54. Bd4 $17 Rc7 55. Bc5) 54... Bc7 {[%emt 0:00:12]} 55. R7b5 {[%emt 0:01:25]} Rc4 {[%emt 0:01:00]} 56. Bb4 {[%emt 0:00:32]} g5 {[%emt 0:01:18]} 57. Bc5 {[%emt 0:00:40]} Ra1 {[%emt 0:00:53]} 58. fxg5 {[%emt 0:00:41]} (58. Be3 $17 {was called for.}) 58... Bxe5 $19 {[%emt 0:00:33]} 59. Rb7+ $2 {[%emt 0:00:15]} (59. R2b3 {nothing else works.}) 59... Kc8 {[%emt 0:00:42]} 0-1

[Event "British Championship 2024"]
[Site "Hull"]
[Date "2024.07.31"]
[Round "2.4"]
[White "Conquest, Stuart C"]
[Black "Davies, Nigel R"]
[Result "1/2-1/2"]
[Annotator "TA"]
[ECO "A21"]
[WhiteElo "2510"]
[BlackElo "2325"]
[PlyCount "34"]
[EventDate "2024.07.31"]
[EventCountry "GBR"]
[SourceTitle "playchess.com"]
[Source "ChessBase"]
[SourceQuality "1"]
[TimeControl "40/5400+30:1800+30"]

{[%evp 9,34,0,0,16,0,0,0,0,0,2,19,14,21,12,12,8,33,0,0,0,0,0,8,-4,-2,-13,-13]} 1. c4 {[%emt 0:00:49]} e5 {[%emt 0:00:09]} 2. Nc3 {[%emt 0:00:28]} Bb4 {[%emt 0:00:12]} 3. Qb3 {[%emt 0:01:24]} a5 {[%emt 0:01:14]} 4. Nf3 {[%emt 0:04:16]} d6 {[%emt 0:00:39]} 5. e3 {[%emt 0:04:16]} Nf6 {[%emt 0:02:39]} 6. Be2 {[%emt 0:03:30]} O-O {[%emt 0:02:54]} 7. O-O {[%emt 0:03:00]} Re8 {[%emt 0:08:06]} 8. d3 {[%emt 0:13:52]} Nbd7 {[%emt 0:03:13]} 9. Qc2 {[%emt 0:10:46]} Bc5 {[%emt 0:12:25]} 10. Rd1 {[%emt 0:13:06]} c6 {[%emt 0:03:55]} 11. b3 {[%emt 0:01:19]} Bb6 {[%emt 0:01:42]} 12. Ba3 {[%emt 0:01:51]} Qe7 {[%emt 0:09:07]} 13. Nd2 {[%emt 0:15:51]} Nc5 {[%emt 0:03:11] The position is equal.} 14. Nde4 {[%emt 0:06:10]} Nfxe4 {[%emt 0:03:43]} 15. dxe4 {[%emt 0:00:17]} Be6 {[%emt 0:01:23]} 16. Rd2 {[%emt 0:00:21]} Rad8 {[%emt 0:00:20]} 17. Rad1 {[%emt 0:00:15]} Bc8 {[%emt 0:44:08] Not much happened in this game.   Weighted Error Value: White=0.06 (flawless) /Black=0.05 (flawless) .  Inaccurate:     	White=1     	---        OK:         	White=3     	Black=7} 1/2-1/2

[Event "British Championship 2024"]
[Site "Hull"]
[Date "2024.07.31"]
[Round "2.5"]
[White "Yao, Lan"]
[Black "Ghasi, Ameet K"]
[Result "1/2-1/2"]
[Annotator "TA"]
[ECO "B46"]
[WhiteElo "2325"]
[BlackElo "2496"]
[PlyCount "64"]
[EventDate "2024.07.31"]
[EventCountry "GBR"]
[SourceTitle "playchess.com"]
[Source "ChessBase"]
[SourceQuality "1"]
[TimeControl "40/5400+30:1800+30"]

{[%evp 12,64,33,0,0,0,0,0,0,0,5,-15,-16,-7,-6,-24,-26,-15,0,-23,-25,-24,0,0,0,0,-1,-31,0,0,-12,-20,0,-16,-4,-92,-91,-102,-104,-118,-92,-120,-95,-122,-24,-15,0,-22,0,0,0,0,0,0,0]} 1. e4 {[%emt 0:00:03]} c5 {[%emt 0:01:43]} 2. Nf3 {[%emt 0:00:06]} e6 {[%emt 0:00:36]} 3. d4 {[%emt 0:00:03]} cxd4 {[%emt 0:00:05]} 4. Nxd4 {[%emt 0:00:02]} Nc6 {[%emt 0:00:14]} 5. Nc3 {[%emt 0:00:04]} a6 {[%emt 0:00:11]} 6. Be3 {[%emt 0:00:46]} Nf6 {[%emt 0:01:27]} 7. Nxc6 {[%emt 0:01:20]} bxc6 {[%emt 0:01:13]} 8. e5 {[%emt 0:00:03]} Nd5 {[%emt 0:00:22]} 9. Nxd5 {[%emt 0:00:04]} cxd5 {[%emt 0:00:47]} 10. Bd3 {[%emt 0:00:06]} Qc7 {[%emt 0:01:57]} 11. Qh5 {[%emt 0:25:14][%cal Oh5g5]} a5 {[%emt 0:06:22]} 12. O-O {[%emt 0:03:12][%cal Oh5g5]} (12. Bxh7 $2 Qc4 (12... g6 $2 13. Qh4 $19) 13. O-O-O Qxa2 $19 (13... g6 $2 14. Qg5 $19)) 12... g6 {[%emt 0:07:53]} 13. Qg5 {[%emt 0:02:50]} Be7 {[%emt 0:04:51] Repels Qf6} 14. Qg3 {[%emt 0:02:07]} h5 {[%emt 0:16:53]} 15. Bd4 {[%emt 0:17:05][%cal Oc2c4]} Ba6 {[%emt 0:04:12]} 16. Rac1 {[%emt 0:01:45]} Qb7 {[%emt 0:07:53]} 17. Rfd1 {[%emt 0:13:51]} Rc8 {[%emt 0:01:57]} 18. Bxa6 {[%emt 0:06:25]} Qxa6 {[%emt 0:00:19]} 19. Qd3 {[%emt 0:00:14]} Qc6 {[%emt 0:02:52]} 20. c3 {[%emt 0:02:31]} O-O {[%emt 0:06:45]} 21. Rc2 {[%emt 0:00:58]} Rc7 {[%emt 0:04:30]} 22. f4 {[%emt 0:01:19]} Rb8 {[%emt 0:04:06]} 23. Bf2 {[%emt 0:02:02] [#]} (23. h3 $1 $11 {was the only way to keep the balance.}) 23... Qa4 $1 $17 {[%emt 0:09:37][%csl LRa2,LRf4]} 24. b3 {[%emt 0:08:32]} Qxf4 {[%emt 0:01:33][%cal Oe7c5]} 25. Rf1 {[%emt 0:03:54][%cal Of2a7]} Qf5 {[%emt 0:01:20]} (25... Qxe5 $2 {loses.} 26. Bg3 Qg5 (26... Bc5+ $2 27. Kh1 $18) 27. Bxc7 $18) 26. Qe2 {[%emt 0:01:08][%cal Of2a7]} Qg4 {[%emt 0:06:47]} 27. Qe1 {[%emt 0:01:02]} Qg5 {[%emt 0:06:56]} ({Black should play} 27... Rb4 $17 {Threatens to win with ...Re4.} 28. h3 Qg5) 28. Bd4 $11 {[%emt 0:00:32]} d6 {[%emt 0:00:09] The position is equal.} 29. Rcf2 {[%emt 0:01:24]} Rf8 {[%emt 0:00:00]} 30. Rf3 {[%emt 0:02:39]} Rd7 {[%emt 0:00:49]} 31. Qf2 {[%emt 0:01:12][%cal Rf3f7]} dxe5 {[%emt 0:00:59]} 32. Rxf7 {[%emt 0:02:21]} exd4 {[%emt 0:00:38] Weighted Error Value: White=0.14 (very precise) /Black=0.17 (very precise) .  Mistake:       	White=1     	Black=1      Inaccurate:     	White=2     	---        OK:         	White=8     	Black=7      Best:        	White=2     	Black=1      Strong:       	---       	Black=1} 1/2-1/2

[Event "British Championship 2024"]
[Site "Hull"]
[Date "2024.07.31"]
[Round "2.6"]
[White "Bazakutsa, Svyatoslav"]
[Black "Balaji, Aaravamudhan"]
[Result "1/2-1/2"]
[Annotator "TA"]
[ECO "E71"]
[WhiteElo "2470"]
[BlackElo "2346"]
[PlyCount "85"]
[EventDate "2024.07.31"]
[EventCountry "GBR"]
[SourceTitle "playchess.com"]
[Source "ChessBase"]
[SourceQuality "1"]
[TimeControl "40/5400+30:1800+30"]

{[%evp 13,85,39,33,35,29,30,48,35,36,36,40,37,43,28,40,46,38,39,57,49,54,0,0,0,0,0,48,51,47,-54,-59,-60,-46,-82,-64,-78,-19,-56,51,42,38,2,41,5,6,13,25,-28,-25,-252,-267,-273,-247,-290,-283,-263,-40,0,-30,-29,0,0,0,0,0,0,0,0,0,0,0,0,0,0]} 1. d4 {[%emt 0:04:53]} Nf6 {[%emt 0:00:07]} 2. c4 {[%emt 0:00:03]} g6 {[%emt 0:00:05]} 3. Nc3 {[%emt 0:00:05]} Bg7 {[%emt 0:00:04]} 4. e4 {[%emt 0:00:07]} d6 {[%emt 0:00:03]} 5. h3 {[%emt 0:00:07]} O-O {[%emt 0:00:15]} 6. Be3 {[%emt 0:00:09]} e5 {[%emt 0:00:16]} 7. d5 {[%emt 0:00:05]} Na6 {[%emt 0:00:02]} 8. g4 {[%emt 0:00:14]} c6 {[%emt 0:00:01]} 9. Qd2 {[%emt 0:04:27]} Nc5 {[%emt 0:12:58]} 10. f3 {[%emt 0:00:20] White is slightly better.} cxd5 {[%emt 0:01:14]} 11. cxd5 {[%emt 0:00:21]} Bd7 {[%emt 0:01:56]} 12. Nge2 {[%emt 0:01:41]} h5 {[%emt 0:00:47]} 13. b4 {[%emt 0:00:59]} Na6 {[%emt 0:02:53]} 14. a3 {[%emt 0:06:43][%cal Ba2a3,Ba3a4][%mdl 32]} Nc7 {[%emt 0:09:22]} 15. a4 {[%emt 0:09:27]} Nh7 {[%emt 0:05:43]} 16. Rg1 {[%emt 0:04:19]} Kh8 {[%emt 0:02:14]} 17. g5 {[%emt 0:32:36]} (17. O-O-O $14) 17... f6 $11 {[%emt 0:16:14]} 18. gxf6 {[%emt 0:02:05]} Qxf6 {[%emt 0:02:00]} 19. Bg2 {[%emt 0:00:13]} Bxh3 {[%emt 0:01:54]} 20. Bxh3 $14 {[%emt 0:16:47]} Qh4+ {[%emt 0:00:01]} 21. Bf2 {[%emt 0:00:21]} (21. Rg3 $2 Rxf3 22. O-O-O Rxg3 23. Nxg3 Qxh3 $19) (21. Kd1 $1 $14 Qxh3 22. Rxg6 Qf1+ (22... Qxf3 23. Kc2 $16) (22... Rxf3 23. Ng1 $16) 23. Qe1 Qxe1+ (23... Rxf3 24. Kd2 $16) 24. Kxe1) 21... Qxh3 $15 {[%emt 0:00:01]} 22. Rg3 {[%emt 0:00:52]} Qd7 {[%emt 0:06:15]} 23. O-O-O {[%emt 0:04:46]} Rf6 {[%emt 0:16:19]} 24. Be3 {[%emt 0:00:21]} Qf7 {[%emt 0:00:50]} (24... Rc8 $17 25. Kb2 b5) 25. Rdg1 $11 {[%emt 0:00:41]} g5 {[%emt 0:05:21]} ({Black should try} 25... Rc8 $15 26. Kb2 Nf8) 26. Bxg5 $14 {[%emt 0:02:11]} Rxf3 {[%emt 0:09:55]} 27. Be3 {[%emt 0:00:16]} (27. Bh6 {simplifies} Rxg3 28. Nxg3 Rg8 29. Be3) 27... Rf1+ {[%emt 0:00:39]} 28. Rxf1 {[%emt 0:04:16]} Qxf1+ {[%emt 0:00:01]} 29. Kc2 {[%emt 0:00:05]} h4 {[%emt 0:02:21]} 30. Rg4 {[%emt 0:00:01]} (30. Rg6 $142) 30... Bf6 $11 {[%emt 0:01:52]} 31. Nf4 $2 {[%emt 0:05:37]} exf4 $19 {[%emt 0:02:18]} 32. Rxf4 {[%emt 0:00:42]} Qh1 {[%emt 0:00:01]} 33. Rxf6 {[%emt 0:00:33]} Nxf6 {[%emt 0:00:01]} 34. Bd4 {[%emt 0:00:04] [#] Intending Qh6+ and mate.} Nce8 $2 {[%emt 0:01:28]} (34... Kh7 $1 $19 35. Bxf6 h3) 35. Qh6+ $15 {[%emt 0:00:18]} Kg8 {[%emt 0:00:00]} 36. Qg6+ {[%emt 0:00:35]} Kf8 {[%emt 0:01:37]} 37. Bxf6 {[%emt 0:00:18] The position is equal.} Nxf6 {[%emt 0:00:45]} 38. Qxf6+ $11 {[%emt 0:00:10] KQR-KQN} Kg8 {[%emt 0:00:02] [#] White must now prevent ...Qg2+.} 39. Qg6+ {[%emt 0:01:12]} Kh8 {[%emt 0:00:06]} 40. Qh6+ {[%emt 0:00:20]} Kg8 {[%emt 0:00:01] And now ...Qg2+ would win.} 41. Qg6+ {[%emt 0:30:14]} Kh8 {[%emt 0:30:01] aiming for ...Qh2+.} 42. Qh6+ {[%emt 0:00:00]} Kg8 {[%emt 0:00:00] Hoping for ...Qg2+.} 43. Qg6+ {[%emt 0:00:00] Weighted Error Value: White=0.23 (precise) /Black=0.26 (precise) .  Loses game:     	White=1     	---        Missed win:     	---       	Black=1      Mistake:       	White=3     	Black=3      Inaccurate:     	White=3     	Black=2      OK:         	White=13    	Black=11     Best:        	White=4     	Black=4} 1/2-1/2